[Event "Condigne Dutch Open 2018"]
[Site "Dieren"]
[Date "2018.07.26"]
[Round "3"]
[White "Van Osch, Mees"]
[Black "Evengroen, Henk-Jan"]
[Result "1-0"]
[ECO "C17"]
[WhiteElo "2324"]
[BlackElo "2160"]
[Annotator "NA"]
[PlyCount "81"]
[EventDate "2018.07.24"]
[EventType "swiss"]
[EventCountry "NED"]
[SourceTitle "playchess.com"]
[Source "ChessBase"]
[SourceQuality "1"]
[TimeControl "40/5400+30:1800+30"]

1. e4 {[%emt 0:00:00]} e6 {[%emt 0:00:05]} 2. d4 {[%emt 0:00:00]} d5 {[%emt 0:00:04]} 3. Nc3 {[%emt 0:00:00]} Bb4 {[%emt 0:00:08]} 4. e5 {[%emt 0:00:00]} c5 {[%emt 0:00:08]} 5. Bd2 {[%emt 0:00:04]} Ne7 {[%emt 0:01:44]} 6. a3 {[%emt 0:00:42]} Bxc3 {[%emt 0:03:32]} 7. Bxc3 {[%emt 0:00:04]} b6 {[%emt 0:06:45]} 8. Bb5+ {[%emt 0:00:04]} Bd7 {[%emt 0:01:06]} 9. Bd3 {[%emt 0:00:27]} Nbc6 {[%emt 0:04:31]} 10. f4 {[%emt 0:00:17]} cxd4 {[%emt 0:09:05]} 11. Bd2 {[%emt 0:00:51]} Nf5 {[%emt 0:01:41]} 12. Nf3 {[%emt 0:07:21]} h5 {[%emt 0:04:32]} 13. Qe2 {[%emt 0:00:49]} g6 {[%emt 0:01:57]} 14. O-O {[%emt 0:00:48]} h4 {[%emt 0:02:13]} 15. b4 {[%emt 0:02:22]} b5 {[%emt 0:13:13]} 16. Qf2 {[%emt 0:12:40]} Qb6 {[%emt 0:04:02]} 17. Bxf5 {[%emt 0:02:07]} gxf5 {[%emt 0:04:05]} 18. Nxh4 {[%emt 0:00:11]} d3 {[%emt 0:04:10]} 19. Nf3 {[%emt 0:01:03]} Qxf2+ {[%emt 0:01:17]} 20. Kxf2 {[%emt 0:00:23]} dxc2 {[%emt 0:00:20]} 21. Ra2 {[%emt 0:06:24]} Ne7 {[%emt 0:05:42]} 22. Rxc2 {[%emt 0:09:35]} Rc8 {[%emt 0:00:51]} 23. Rxc8+ {[%emt 0:01:39]} Bxc8 {[%emt 0:00:41]} 24. Rc1 {[%emt 0:06:27]} Bd7 {[%emt 0:05:12]} 25. Be3 {[%emt 0:07:33]} Nc6 {[%emt 0:02:29]} 26. Bc5 {[%emt 0:00:10]} Rh6 {[%emt 0:05:15]} 27. Bd4 {[%emt 0:11:14]} Kd8 {[%emt 0:01:15]} 28. h3 {[%emt 0:00:19]} Nxd4 {[%emt 0:05:07]} 29. Nxd4 {[%emt 0:00:07]} f6 {[%emt 0:00:59]} 30. Nf3 {[%emt 0:01:19]} Be8 {[%emt 0:00:56]} 31. exf6 {[%emt 0:00:29]} Rxf6 {[%emt 0:00:22]} 32. Ne5 {[%emt 0:00:31]} Rh6 {[%emt 0:00:44]} 33. Rc3 {[%emt 0:00:24]} Rh7 {[%emt 0:00:45]} 34. g4 {[%emt 0:00:26]} fxg4 {[%emt 0:01:26]} 35. hxg4 {[%emt 0:00:17]} Rh2+ {[%emt 0:00:48]} 36. Kg3 {[%emt 0:01:05]} Rh1 {[%emt 0:00:37]} 37. g5 {[%emt 0:00:49]} Ke7 {[%emt 0:02:40]} 38. Rc7+ {[%emt 0:02:00]} Kd6 {[%emt 0:03:35]} 39. Rc8 {[%emt 0:02:01]} Bd7 {[%emt 0:01:59]} 40. Rd8 {[%emt 0:00:34]} Rh7 {[%emt 0:30:06]} 41. g6 {[%emt 0:30:29]} 1-0

[Event "Condigne Dutch Open 2018"]
[Site "Dieren"]
[Date "2018.07.26"]
[Round "3"]
[White "Ojas Kulkarni"]
[Black "Reinderman, Dimitri"]
[Result "0-1"]
[ECO "A40"]
[WhiteElo "2226"]
[BlackElo "2575"]
[Annotator "ChessBase"]
[PlyCount "50"]
[EventDate "2018.07.24"]
[EventType "swiss"]
[EventCountry "NED"]
[SourceTitle "playchess.com"]
[Source "ChessBase"]
[SourceQuality "1"]
[TimeControl "40/5400+30:1800+30"]

1. d4 {[%emt 0:00:00]} e6 {[%emt 0:00:17]} 2. c4 {[%emt 0:00:00]} b6 {[%emt 0:00:15]} 3. Nc3 {[%emt 0:02:17]} Bb7 {[%emt 0:00:33]} 4. Nf3 {[%emt 0:01:27]} Bb4 {[%emt 0:01:35]} 5. Bg5 {[%emt 0:01:35]} Bxc3+ {[%emt 0:07:08]} 6. bxc3 {[%emt 0:00:10]} Ne7 {[%emt 0:00:38]} 7. Nd2 {[%emt 0:02:21]} h6 {[%emt 0:04:56]} 8. Bh4 {[%emt 0:00:49]} O-O {[%emt 0:02:47]} 9. e4 {[%emt 0:03:52]} f5 {[%emt 0:01:43]} 10. f3 {[%emt 0:03:26]} fxe4 {[%emt 0:02:35]} 11. fxe4 {[%emt 0:00:11]} Qe8 {[%emt 0:00:29]} 12. Be2 {[%emt 0:02:21]} Kh7 {[%emt 0:16:06]} 13. e5 {[%emt 0:20:31]} Nf5 {[%emt 0:01:16]} 14. Bd3 {[%emt 0:00:08]} Kh8 {[%emt 0:01:00]} 15. Bf2 {[%emt 0:01:38]} Bxg2 {[%emt 0:08:36]} 16. Rg1 {[%emt 0:00:45]} Bb7 {[%emt 0:00:20]} 17. Qg4 {[%emt 0:00:36]} Rf7 {[%emt 0:01:23]} 18. Ne4 {[%emt 0:25:57]} Nc6 {[%emt 0:02:03]} 19. Bh4 {[%emt 0:01:14]} Qf8 {[%emt 0:09:16]} 20. Ng3 {[%emt 0:08:38]} Nxh4 {[%emt 0:04:14]} 21. Qxh4 {[%emt 0:00:03]} Rf4 {[%emt 0:00:32]} 22. Qh5 {[%emt 0:01:18]} Ne7 {[%emt 0:00:26]} 23. Ne2 {[%emt 0:03:53]} Bf3 {[%emt 0:03:56]} 24. Qh3 {[%emt 0:00:14]} Bxe2 {[%emt 0:00:28]} 25. Kxe2 {[%emt 0:00:07]} Rf2+ {[%emt 0:01:23]} 0-1

[Event "Condigne Dutch Open 2018"]
[Site "Dieren"]
[Date "2018.07.26"]
[Round "3"]
[White "Van Dael, Siem"]
[Black "Anurag, Mhamal"]
[Result "0-1"]
[ECO "B66"]
[WhiteElo "2212"]
[BlackElo "2484"]
[Annotator "ChessBase"]
[PlyCount "56"]
[EventDate "2018.07.24"]
[EventType "swiss"]
[EventCountry "NED"]
[SourceTitle "playchess.com"]
[Source "ChessBase"]
[SourceQuality "1"]
[TimeControl "40/5400+30:1800+30"]

1. e4 {[%emt 0:00:00]} c5 {[%emt 0:00:15]} 2. Nf3 {[%emt 0:00:00]} d6 {[%emt 0:00:08]} 3. d4 {[%emt 0:00:00]} cxd4 {[%emt 0:00:03]} 4. Nxd4 {[%emt 0:00:00]} Nf6 {[%emt 0:00:03]} 5. Nc3 {[%emt 0:00:00]} Nc6 {[%emt 0:00:04]} 6. Bg5 {[%emt 0:03:51]} e6 {[%emt 0:00:08]} 7. Qd2 {[%emt 0:01:20]} a6 {[%emt 0:00:05]} 8. O-O-O {[%emt 0:01:05]} h6 {[%emt 0:05:57]} 9. Bf4 {[%emt 0:06:18]} Bd7 {[%emt 0:00:06]} 10. Nxc6 {[%emt 0:07:33]} Bxc6 {[%emt 0:00:03]} 11. Bxd6 {[%emt 0:00:09]} Qxd6 {[%emt 0:01:47]} 12. Qxd6 {[%emt 0:00:06]} Bxd6 {[%emt 0:00:02]} 13. Rxd6 {[%emt 0:00:06]} Bxe4 {[%emt 0:02:29]} 14. Rd2 {[%emt 0:08:05]} Bc6 {[%emt 0:01:08]} 15. f3 {[%emt 0:01:22]} h5 {[%emt 0:05:21]} 16. h4 {[%emt 0:03:21]} Ke7 {[%emt 0:00:14]} 17. Be2 {[%emt 0:01:36]} Rag8 {[%emt 0:01:26]} 18. a4 {[%emt 0:20:37]} g5 {[%emt 0:01:41]} 19. Bd3 {[%emt 0:08:43]} g4 {[%emt 0:20:42]} 20. Be4 {[%emt 0:08:42]} Nxe4 {[%emt 0:06:24]} 21. fxe4 {[%emt 0:00:29]} g3 {[%emt 0:00:05]} 22. Re2 {[%emt 0:21:01]} Rg4 {[%emt 0:00:36]} 23. Kd2 {[%emt 0:02:21]} Rd8+ {[%emt 0:00:32]} 24. Ke3 {[%emt 0:00:49]} f5 {[%emt 0:03:44]} 25. Rf1 {[%emt 0:02:11]} Bxe4 {[%emt 0:01:16]} 26. Rf4 {[%emt 0:00:22]} e5 {[%emt 0:00:53]} 27. Rxg4 {[%emt 0:01:17]} hxg4 {[%emt 0:00:05]} 28. Nxe4 {[%emt 0:00:07]} f4# {[%emt 0:00:35]} 0-1

[Event "Condigne Dutch Open 2018"]
[Site "Dieren"]
[Date "2018.07.26"]
[Round "3"]
[White "Floor, Dirk"]
[Black "Beukema, Stefan"]
[Result "0-1"]
[ECO "A80"]
[WhiteElo "2196"]
[BlackElo "2404"]
[Annotator "NA"]
[PlyCount "78"]
[EventDate "2018.07.24"]
[EventType "swiss"]
[EventCountry "NED"]
[SourceTitle "playchess.com"]
[Source "ChessBase"]
[SourceQuality "1"]
[TimeControl "40/5400+30:1800+30"]

1. d4 {[%emt 0:00:00]} f5 {[%emt 0:00:00]} 2. Bg5 {[%emt 0:00:00]} h6 {[%emt 0:00:00]} 3. Bh4 {[%emt 0:00:13]} g5 {[%emt 0:00:00]} 4. e3 {[%emt 0:00:13]} Nf6 {[%emt 0:00:37]} 5. Bg3 {[%emt 0:00:10]} d6 {[%emt 0:01:09]} 6. Nc3 {[%emt 1:32:24]} Bg7 {[%emt 0:01:40]} 7. h4 {[%emt 0:00:00]} g4 {[%emt 0:01:17]} 8. h5 {[%emt 0:00:00]} Nc6 {[%emt 0:02:37]} 9. Nge2 {[%emt 0:00:00]} e5 {[%emt 0:01:05]} 10. dxe5 {[%emt 0:00:00]} dxe5 {[%emt 0:00:43]} 11. Qxd8+ {[%emt 0:00:00]} Kxd8 {[%emt 0:00:05]} 12. Bh4 {[%emt 0:00:00]} Be6 {[%emt 0:01:06]} 13. O-O-O+ {[%emt 0:00:00]} Ke8 {[%emt 0:01:20]} 14. Ng3 {[%emt 0:00:00]} Kf7 {[%emt 0:02:57]} 15. Bd3 {[%emt 0:00:00]} e4 $14 {[%emt 0:01:00]} 16. Bb5 {[%emt 0:00:00]} Ne5 {[%emt 0:00:06]} 17. Ba4 {[%emt 0:00:00]} c5 {[%emt 0:02:26]} 18. Nb5 {[%emt 0:00:00]} Ne8 {[%emt 0:00:42]} 19. Nd6+ {[%emt 0:00:00]} Nxd6 {[%emt 0:00:39]} 20. Rxd6 {[%emt 0:00:00]} Nc4 {[%emt 0:00:26]} 21. Rxe6 {[%emt 0:00:00]} Kxe6 {[%emt 0:00:04]} 22. Bb3 {[%emt 0:00:00]} b5 {[%emt 0:00:07]} 23. Bxc4+ {[%emt 0:00:00]} bxc4 {[%emt 0:00:07]} 24. Rd1 {[%emt 0:00:00]} c3 {[%emt 0:06:20]} 25. bxc3 {[%emt 0:00:00]} Bxc3 {[%emt 0:00:56]} 26. Ne2 {[%emt 0:00:00]} Be5 {[%emt 0:00:07]} 27. Bg3 {[%emt 0:00:00]} Rhd8 {[%emt 0:00:26]} 28. Rf1 {[%emt 0:00:00]} Rab8 {[%emt 0:00:53]} 29. Bxe5 {[%emt 0:00:00]} Kxe5 {[%emt 0:00:08]} 30. a3 {[%emt 0:00:00]} Rd6 {[%emt 0:01:13]} 31. Nc3 {[%emt 0:00:00]} Ra6 {[%emt 0:00:25]} 32. Rd1 {[%emt 0:00:00]} Rxa3 {[%emt 0:02:36]} 33. Rd5+ {[%emt 0:00:00]} Ke6 {[%emt 0:00:23]} 34. Rxc5 {[%emt 0:00:00]} Ra1+ {[%emt 0:00:05]} 35. Kd2 {[%emt 0:00:00]} Rd8+ {[%emt 0:00:05]} 36. Ke2 {[%emt 0:00:00]} Rg1 {[%emt 0:00:50]} 37. g3 {[%emt 0:00:00]} a6 {[%emt 0:00:12]} 38. Rc7 {[%emt 0:03:06]} Rc1 {[%emt 0:04:22]} 39. Na2 {[%emt 0:01:05]} Rcd1 {[%emt 0:00:09]} 0-1

[Event "Condigne Dutch Open 2018"]
[Site "Dieren"]
[Date "2018.07.26"]
[Round "3"]
[White "Vogel, Jaap"]
[Black "Shyaamnikhil P"]
[Result "0-1"]
[ECO "A46"]
[WhiteElo "2187"]
[BlackElo "2375"]
[Annotator "NA"]
[PlyCount "59"]
[EventDate "2018.07.24"]
[EventType "swiss"]
[EventCountry "NED"]
[SourceTitle "playchess.com"]
[Source "ChessBase"]
[SourceQuality "1"]
[TimeControl "40/5400+30:1800+30"]

1. d4 {[%emt 0:00:00]} Nf6 {[%emt 0:01:41]} 2. Nf3 {[%emt 0:00:00]} e6 {[%emt 0:00:28]} 3. Bg5 {[%emt 0:03:33]} h6 {[%emt 0:01:07]} 4. Bxf6 {[%emt 0:01:39]} Qxf6 {[%emt 0:00:09]} 5. e4 {[%emt 0:00:11]} d6 {[%emt 0:04:24]} 6. Be2 {[%emt 0:07:29]} Nd7 {[%emt 0:01:04]} 7. O-O {[%emt 0:03:27]} g5 {[%emt 0:05:59]} 8. Nc3 {[%emt 0:19:27]} Bg7 {[%emt 0:05:11]} 9. Nb5 {[%emt 0:07:26]} Qd8 {[%emt 0:01:19]} 10. a4 {[%emt 0:00:46]} a6 {[%emt 0:04:39]} 11. Na3 {[%emt 0:00:08]} Nf8 {[%emt 0:06:55]} 12. Nc4 {[%emt 0:13:55]} Ng6 {[%emt 0:01:40]} 13. c3 {[%emt 0:02:14]} O-O {[%emt 0:15:44]} 14. e5 {[%emt 0:23:38]} b6 {[%emt 0:22:43]} 15. exd6 {[%emt 0:06:13]} cxd6 {[%emt 0:00:07]} 16. Qb3 {[%emt 0:00:06]} Nf4 {[%emt 0:01:50]} 17. Bd1 {[%emt 0:00:27]} Rb8 {[%emt 0:05:37]} 18. Qa3 {[%emt 0:01:57]} g4 {[%emt 0:03:33]} 19. Ne1 {[%emt 0:00:11]} e5 {[%emt 0:00:30]} 20. dxe5 {[%emt 0:02:05]} dxe5 {[%emt 0:00:09]} 21. Ne3 {[%emt 0:02:25]} Qg5 {[%emt 0:00:32]} 22. Bc2 {[%emt 0:02:22]} Rd8 {[%emt 0:00:40]} 23. Rd1 {[%emt 0:00:33]} Rxd1 {[%emt 0:02:33]} 24. Bxd1 {[%emt 0:00:16]} Bf8 {[%emt 0:01:15]} 25. Qa1 {[%emt 0:00:04]} Be6 {[%emt 0:01:00]} 26. Qb1 {[%emt 0:01:05]} Rd8 {[%emt 0:01:51]} 27. Qc2 {[%emt 0:01:11]} Bc5 {[%emt 0:03:36]} 28. Qc1 {[%emt 0:00:40]} a5 {[%emt 0:01:10]} 29. N1c2 {[%emt 0:00:26]} Bc4 {[%emt 0:05:31]} 30. Bxg4 {[%emt 0:00:00]} 0-1

[Event "Condigne Dutch Open 2018"]
[Site "Dieren"]
[Date "2018.07.26"]
[Round "3"]
[White "Van Helvoort, Rob"]
[Black "Maatman, Nick"]
[Result "0-1"]
[ECO "B07"]
[WhiteElo "2119"]
[BlackElo "2345"]
[Annotator "NA"]
[PlyCount "86"]
[EventDate "2018.07.24"]
[EventType "swiss"]
[EventCountry "NED"]
[SourceTitle "playchess.com"]
[Source "ChessBase"]
[SourceQuality "1"]
[TimeControl "40/5400+30:1800+30"]

1. d4 {[%emt 0:00:00]} Nf6 {[%emt 0:00:18]} 2. Nf3 {[%emt 0:00:00]} g6 {[%emt 0:00:04]} 3. Nbd2 {[%emt 0:00:05]} Bg7 {[%emt 0:03:17]} 4. e4 {[%emt 0:00:12]} d6 {[%emt 0:00:30]} 5. Bd3 {[%emt 0:00:07]} Nbd7 {[%emt 0:04:02]} 6. O-O {[%emt 0:01:37]} O-O {[%emt 0:03:41]} 7. Re1 {[%emt 0:04:05]} e5 {[%emt 0:01:50]} 8. c3 {[%emt 0:01:49]} Re8 {[%emt 0:02:40]} 9. dxe5 {[%emt 0:01:35]} dxe5 {[%emt 0:05:48]} 10. Qc2 {[%emt 0:00:10]} c6 {[%emt 0:03:14]} 11. a4 {[%emt 0:03:18]} Qc7 {[%emt 0:00:25]} 12. b4 {[%emt 0:03:47]} a5 {[%emt 0:00:59]} 13. Nb3 {[%emt 0:01:15]} axb4 {[%emt 0:01:01]} 14. cxb4 {[%emt 0:01:42]} Nf8 {[%emt 0:03:22]} 15. Bb2 {[%emt 0:08:31]} Nh5 {[%emt 0:03:06]} 16. g3 {[%emt 0:05:08]} Bg4 {[%emt 0:03:51]} 17. Nfd2 {[%emt 0:08:33]} Ne6 {[%emt 0:05:15]} 18. Kg2 {[%emt 0:16:12]} Rad8 {[%emt 0:08:19]} 19. Bf1 {[%emt 0:02:35]} Nd4 {[%emt 0:06:10]} 20. Nxd4 {[%emt 0:04:18]} exd4 {[%emt 0:00:01]} 21. h3 {[%emt 0:08:38]} d3 {[%emt 0:11:44]} 22. Qc1 {[%emt 0:01:22]} Bc8 {[%emt 0:07:47]} 23. Bxg7 {[%emt 0:00:29]} Nxg7 {[%emt 0:00:04]} 24. Qc3 {[%emt 0:03:11]} Qd7 {[%emt 0:03:43]} 25. Kh2 {[%emt 0:02:03]} Qd4 {[%emt 0:02:08]} 26. Qxd4 {[%emt 0:00:07]} Rxd4 {[%emt 0:00:02]} 27. Rab1 {[%emt 0:01:13]} f5 {[%emt 0:03:07]} 28. e5 {[%emt 0:02:27]} Be6 {[%emt 0:06:05]} 29. f4 {[%emt 0:01:50]} Red8 {[%emt 0:00:54]} 30. h4 {[%emt 0:08:49]} Bd5 {[%emt 0:01:24]} 31. Bg2 {[%emt 0:01:01]} Ne6 {[%emt 0:01:06]} 32. Bxd5 {[%emt 0:00:59]} R8xd5 {[%emt 0:01:13]} 33. Nf3 {[%emt 0:02:34]} Rc4 {[%emt 0:00:28]} 34. Red1 {[%emt 0:00:08]} Rc2+ {[%emt 0:01:12]} 35. Kg1 {[%emt 0:01:26]} c5 {[%emt 0:01:49]} 36. bxc5 {[%emt 0:00:49]} Nxc5 {[%emt 0:00:02]} 37. Rb5 {[%emt 0:00:15]} Rd8 {[%emt 0:02:12]} 38. Ng5 {[%emt 0:02:33]} d2 {[%emt 0:00:44]} 39. Kf1 {[%emt 0:00:08]} Nxa4 {[%emt 0:00:55]} 40. Rxb7 {[%emt 0:02:10]} Rc1 {[%emt 0:30:20]} 41. Nxh7 {[%emt 0:32:29]} Rxd1+ {[%emt 0:00:22]} 42. Kf2 {[%emt 0:00:06]} Rf1+ {[%emt 0:02:33]} 43. Kg2 {[%emt 0:00:04]} Rf8 {[%emt 0:00:22]} 0-1

[Event "Condigne Dutch Open 2018"]
[Site "Dieren"]
[Date "2018.07.26"]
[Round "3"]
[White "Tromp, Pieter"]
[Black "De Jong, Migchiel"]
[Result "0-1"]
[ECO "A46"]
[WhiteElo "2097"]
[BlackElo "2339"]
[Annotator "NA"]
[PlyCount "60"]
[EventDate "2018.07.24"]
[EventType "swiss"]
[EventCountry "NED"]
[SourceTitle "playchess.com"]
[Source "ChessBase"]
[SourceQuality "1"]
[TimeControl "40/5400+30:1800+30"]

1. d4 {[%emt 0:00:00]} e6 {[%emt 0:01:04]} 2. Nf3 {[%emt 0:00:29]} c5 {[%emt 0:00:29]} 3. c3 {[%emt 0:00:56]} Nf6 {[%emt 0:00:51]} 4. Bf4 {[%emt 0:00:47]} Be7 {[%emt 0:00:47]} 5. e3 {[%emt 0:00:23]} Nh5 {[%emt 0:04:07]} 6. Bg3 {[%emt 0:01:41]} d6 {[%emt 0:01:05]} 7. Bd3 {[%emt 0:02:07]} Nd7 {[%emt 0:01:18]} 8. Nbd2 {[%emt 0:02:09]} h6 {[%emt 0:06:09]} 9. Ne4 {[%emt 0:04:43]} Nxg3 {[%emt 0:03:18]} 10. hxg3 {[%emt 0:01:00]} Qb6 {[%emt 0:01:54]} 11. dxc5 {[%emt 0:03:21]} Nxc5 {[%emt 0:01:03]} 12. Nxc5 {[%emt 0:00:59]} Qxc5 {[%emt 0:00:26]} 13. Nd4 {[%emt 0:04:25]} a6 {[%emt 0:02:04]} 14. Qf3 {[%emt 0:06:35]} Qb6 {[%emt 0:04:48]} 15. O-O-O {[%emt 0:00:58]} Bd7 {[%emt 0:00:22]} 16. Kb1 {[%emt 0:08:55]} Rc8 {[%emt 0:01:34]} 17. Ka1 {[%emt 0:02:04]} Qc7 {[%emt 0:01:56]} 18. Qh5 {[%emt 0:21:59]} Bf6 {[%emt 0:04:13]} 19. f4 {[%emt 0:02:34]} b5 {[%emt 0:03:18]} 20. g4 {[%emt 0:02:16]} Ke7 {[%emt 0:04:15]} 21. a3 {[%emt 0:03:32]} g6 {[%emt 0:01:28]} 22. Qh2 {[%emt 0:02:04]} e5 {[%emt 0:05:19]} 23. Nf3 {[%emt 0:02:29]} a5 {[%emt 0:03:01]} 24. Qg3 {[%emt 0:02:20]} b4 {[%emt 0:00:59]} 25. fxe5 {[%emt 0:07:50]} dxe5 {[%emt 0:00:14]} 26. cxb4 {[%emt 0:02:13]} axb4 {[%emt 0:00:16]} 27. Rc1 {[%emt 0:00:50]} Qa5 {[%emt 0:01:44]} 28. e4 {[%emt 0:01:24]} Rc3 {[%emt 0:02:48]} 29. Rxc3 {[%emt 0:07:47]} bxc3 {[%emt 0:00:06]} 30. Bc4 {[%emt 0:00:34]} Rb8 {[%emt 0:01:08]} 0-1

[Event "Condigne Dutch Open 2018"]
[Site "Dieren"]
[Date "2018.07.26"]
[Round "3"]
[White "Wedda, Dries"]
[Black "De Boer, Eelke"]
[Result "0-1"]
[ECO "E70"]
[WhiteElo "2069"]
[BlackElo "2317"]
[Annotator "NA"]
[PlyCount "84"]
[EventDate "2018.07.24"]
[EventType "swiss"]
[EventCountry "NED"]
[SourceTitle "playchess.com"]
[Source "ChessBase"]
[SourceQuality "1"]
[TimeControl "40/5400+30:1800+30"]

1. d4 {[%emt 0:00:00]} Nf6 {[%emt 0:00:08]} 2. c4 {[%emt 0:00:00]} g6 {[%emt 0:00:07]} 3. Nc3 {[%emt 0:00:00]} Bg7 {[%emt 0:00:06]} 4. e4 {[%emt 0:00:00]} d6 {[%emt 0:00:09]} 5. Nge2 {[%emt 0:00:00]} O-O {[%emt 0:00:09]} 6. Ng3 {[%emt 0:00:00]} a6 {[%emt 0:00:12]} 7. Be2 {[%emt 0:00:04]} c5 {[%emt 0:02:42]} 8. d5 {[%emt 0:00:15]} b5 {[%emt 0:00:05]} 9. cxb5 {[%emt 0:01:20]} axb5 {[%emt 0:00:06]} 10. Bxb5 {[%emt 0:01:42]} Ba6 {[%emt 0:00:40]} 11. Bxa6 {[%emt 0:04:10]} Nxa6 {[%emt 0:00:07]} 12. O-O {[%emt 0:01:39]} Qb6 {[%emt 0:02:37]} 13. Rb1 {[%emt 0:10:31]} Ne8 {[%emt 0:04:17]} 14. Bg5 {[%emt 0:02:21]} Nf6 {[%emt 0:11:36]} 15. Qd2 {[%emt 0:11:20]} Rfb8 {[%emt 0:00:38]} 16. Bh6 {[%emt 0:03:22]} Bh8 {[%emt 0:01:12]} 17. Nf5 {[%emt 0:00:13]} Ra7 {[%emt 0:02:28]} 18. Ne3 {[%emt 0:01:49]} Qb4 {[%emt 0:08:45]} 19. Qc2 {[%emt 0:03:58]} Ne8 {[%emt 0:03:38]} 20. Rfc1 {[%emt 0:08:05]} Nec7 {[%emt 0:04:06]} 21. a4 {[%emt 0:05:43]} Rab7 {[%emt 0:03:13]} 22. b3 {[%emt 0:01:56]} Qxc3 {[%emt 0:10:34]} 23. Qxc3 {[%emt 0:00:08]} Bxc3 {[%emt 0:00:06]} 24. Rxc3 {[%emt 0:00:05]} Rb4 {[%emt 0:00:08]} 25. Nc4 {[%emt 0:14:29]} Rxa4 {[%emt 0:00:18]} 26. Rd1 {[%emt 0:00:45]} Rab4 {[%emt 0:07:37]} 27. e5 {[%emt 0:01:59]} Rxb3 {[%emt 0:02:42]} 28. Rxb3 {[%emt 0:01:05]} Rxb3 {[%emt 0:00:32]} 29. exd6 {[%emt 0:04:44]} exd6 {[%emt 0:00:46]} 30. Nxd6 {[%emt 0:00:03]} Nxd5 {[%emt 0:01:21]} 31. h4 {[%emt 0:04:17]} Nac7 {[%emt 0:00:47]} 32. Ne4 {[%emt 0:01:00]} c4 {[%emt 0:02:32]} 33. Rd4 {[%emt 0:02:28]} c3 {[%emt 0:03:00]} 34. Rc4 {[%emt 0:00:06]} f5 {[%emt 0:00:42]} 35. Ng5 {[%emt 0:01:08]} Rb1+ {[%emt 0:05:24]} 36. Kh2 {[%emt 0:00:06]} Rb4 {[%emt 0:00:12]} 37. Rxb4 {[%emt 0:00:07]} Nxb4 {[%emt 0:00:06]} 38. Nf3 {[%emt 0:00:11]} Nb5 {[%emt 0:00:45]} 39. h5 {[%emt 0:02:08]} Nd3 {[%emt 0:02:29]} 40. hxg6 {[%emt 0:01:12]} hxg6 {[%emt 0:30:07]} 41. Bd2 {[%emt 0:30:12]} cxd2 {[%emt 0:00:36]} 42. Nxd2 {[%emt 0:00:02]} Nxf2 {[%emt 0:00:10]} 0-1

[Event "Condigne Dutch Open 2018"]
[Site "Dieren"]
[Date "2018.07.27"]
[Round "4"]
[White "L'Ami, Erwin"]
[Black "Ikonnikov, Vyacheslav"]
[Result "1/2-1/2"]
[ECO "B32"]
[WhiteElo "2636"]
[BlackElo "2536"]
[Annotator "ChessBase"]
[PlyCount "122"]
[EventDate "2018.07.24"]
[EventType "swiss"]
[EventCountry "NED"]
[SourceTitle "playchess.com"]
[Source "ChessBase"]
[SourceQuality "1"]
[TimeControl "40/5400+30:1800+30"]

1. e4 {[%emt 0:00:00]} c5 {[%emt 0:00:09]} 2. Nf3 {[%emt 0:00:00]} Nc6 {[%emt 0:00:13]} 3. d4 {[%emt 0:00:00]} cxd4 {[%emt 0:00:19]} 4. Nxd4 {[%emt 0:00:03]} e5 {[%emt 0:00:17]} 5. Nb5 {[%emt 0:00:07]} d6 {[%emt 0:00:15]} 6. N1c3 {[%emt 0:00:08]} a6 {[%emt 0:00:21]} 7. Na3 {[%emt 0:00:06]} Be7 {[%emt 0:00:37]} 8. Be3 {[%emt 0:02:40]} Nf6 {[%emt 0:06:33]} 9. Nc4 {[%emt 0:00:33]} b5 {[%emt 0:00:07]} 10. Nb6 {[%emt 0:00:17]} Rb8 {[%emt 0:00:04]} 11. Nxc8 {[%emt 0:00:12]} Qxc8 {[%emt 0:00:05]} 12. Be2 {[%emt 0:00:28]} O-O {[%emt 0:09:52]} 13. O-O {[%emt 0:00:31]} Na5 {[%emt 0:01:42]} 14. Bg5 {[%emt 0:06:28]} Qb7 {[%emt 0:27:45]} 15. Bxf6 {[%emt 0:01:23]} Bxf6 {[%emt 0:00:04]} 16. Nd5 {[%emt 0:16:32]} Bd8 {[%emt 0:04:34]} 17. c3 {[%emt 0:07:38]} Nc6 {[%emt 0:08:55]} 18. Qd3 {[%emt 0:04:43]} Ne7 {[%emt 0:00:57]} 19. Rfd1 {[%emt 0:01:12]} Nxd5 {[%emt 0:01:23]} 20. Qxd5 {[%emt 0:01:04]} Bc7 {[%emt 0:00:20]} 21. Qxb7 {[%emt 0:03:30]} Rxb7 {[%emt 0:00:03]} 22. b4 {[%emt 0:02:45]} a5 {[%emt 0:02:38]} 23. Rd5 {[%emt 0:06:02]} Rfb8 {[%emt 0:00:25]} 24. Rc1 {[%emt 0:04:26]} Kf8 {[%emt 0:11:25]} 25. bxa5 {[%emt 0:05:07]} Ra7 {[%emt 0:02:47]} 26. Bxb5 {[%emt 0:03:33]} Rxa5 {[%emt 0:00:06]} 27. a4 {[%emt 0:00:18]} Ke7 {[%emt 0:00:05]} 28. Rcd1 {[%emt 0:03:28]} Rd8 {[%emt 0:00:42]} 29. g3 {[%emt 0:01:04]} Ra7 {[%emt 0:01:53]} 30. f4 {[%emt 0:03:17]} f6 {[%emt 0:01:32]} 31. Kg2 {[%emt 0:03:36]} Ba5 {[%emt 0:06:25]} 32. c4 {[%emt 0:01:57]} Bb6 {[%emt 0:00:45]} 33. R5d3 {[%emt 0:03:49]} Bd4 {[%emt 0:04:03]} 34. Rxd4 {[%emt 0:04:09]} exd4 {[%emt 0:00:06]} 35. Kf3 {[%emt 0:00:34]} Rda8 {[%emt 0:05:15]} 36. Ra1 {[%emt 0:00:42]} g5 {[%emt 0:02:45]} 37. f5 {[%emt 0:03:11]} h5 {[%emt 0:01:02]} 38. Ke2 {[%emt 0:02:01]} Kd8 {[%emt 0:01:19]} 39. Kd3 {[%emt 0:01:30]} Rc7 {[%emt 0:00:46]} 40. Kxd4 {[%emt 0:07:26]} Rc5 {[%emt 0:30:35]} 41. h4 {[%emt 0:03:32]} g4 {[%emt 0:00:00]} 42. a5 {[%emt 0:03:55]} Kc7 {[%emt 0:00:00]} 43. a6 {[%emt 0:04:11]} Kb6 {[%emt 0:00:00]} 44. a7 {[%emt 0:09:23]} Rxa7 {[%emt 0:00:00]} 45. Rxa7 {[%emt 0:00:07]} Kxa7 {[%emt 0:00:00]} 46. Be8 {[%emt 0:00:10]} Ra5 {[%emt 0:00:00]} 47. Bxh5 {[%emt 0:01:36]} Ra3 {[%emt 0:00:00]} 48. Bxg4 {[%emt 0:04:24]} Rxg3 {[%emt 0:00:00]} 49. Bh5 {[%emt 0:00:52]} Kb6 {[%emt 0:00:00]} 50. Kd5 {[%emt 0:00:09]} Kc7 {[%emt 0:00:00]} 51. Ke6 {[%emt 0:00:18]} Rh3 {[%emt 0:00:00]} 52. Kxf6 {[%emt 0:04:09]} Rxh4 {[%emt 0:00:00]} 53. Bf7 {[%emt 0:01:46]} Rxe4 {[%emt 0:00:00]} 54. Bd5 {[%emt 0:00:22]} Re1 {[%emt 0:00:00]} 55. Kf7 {[%emt 0:00:33]} Kd8 {[%emt 0:00:00]} 56. f6 {[%emt 0:00:21]} Kd7 {[%emt 0:00:00]} 57. Bg2 {[%emt 0:00:24]} Re3 {[%emt 0:00:00]} 58. Bd5 {[%emt 0:01:13]} Re1 {[%emt 0:00:00]} 59. Kg7 {[%emt 0:00:32]} Rg1+ {[%emt 0:00:00]} 60. Kf8 {[%emt 0:00:18]} Rf1 {[%emt 0:00:00]} 61. Kf7 {[%emt 0:00:51]} Kc7 {[%emt 0:11:51]} 1/2-1/2